fUST/lending_fUST_20240520
["ID","MTS","AMOUNT","RATE_DAILY","PERIOD"]
[327523392,1716154132712,-340.89,0.00047397,43]
[327523393,1716154132743,-2105.86,0.00047397,43]
[327523394,1716154132769,-754.27,0.00047397,21]
[327523395,1716154132794,-10000.0,0.00047666,120]
[327523396,1716154132820,-500.0,0.00047671,20]
[327523397,1716154132845,-537.25,0.00047671,44]
[327523398,1716154132869,-500.0,0.00047671,44]
[327523399,1716154132894,-500.0,0.00047671,44]
[327523400,1716154132918,-500.0,0.00047671,44]
[327523401,1716154132944,-500.0,0.00047671,44]
[327523402,1716154132969,-500.0,0.00047671,44]
[327523403,1716154132994,-500.0,0.00047671,44]
[327523404,1716154133019,-500.0,0.00047671,44]
[327523405,1716154133046,-925.94,0.00047671,44]
[327523406,1716154133070,-1631.99,0.00047671,44]
[327523407,1716154133095,-500.0,0.00047671,44]
[327523408,1716154133120,-5763.66,0.00047671,44]
[327523409,1716154133147,-501.97,0.00047671,44]
[327523410,1716154133175,-2028.34,0.00047671,44]
[327523411,1716154133200,-10396.27,0.00047671,44]
[327523412,1716154133224,-904.37,0.00047671,44]
[327523413,1716154133251,-524.68,0.00047671,44]
[327523414,1716154133279,-739.09,0.00047671,44]
[327523415,1716154133306,-500.0,0.00047671,44]
[327523416,1716154133403,-954.34,0.00047671,44]
[327523417,1716154133429,-1612.29,0.00047671,44]
[327523418,1716154133455,-689.88,0.00047671,44]
[327523419,1716154133482,-500.0,0.00047671,44]
[327523420,1716154133509,-890.96,0.00047671,44]
[327523421,1716154133536,-500.0,0.00047671,44]
[327523422,1716154133564,-1024.74,0.00047671,44]
[327523423,1716154133591,-500.0,0.00047671,44]
[327523424,1716154133618,-7230.68,0.00047671,44]
[327523425,1716154133644,-500.0,0.00047671,44]
[327523426,1716154133670,-500.0,0.00047671,44]
[327523427,1716154133700,-500.0,0.00047671,44]
[327523428,1716154133725,-500.0,0.00047671,44]
[327523429,1716154133752,-2105.86,0.00047671,44]
[327523430,1716154133780,-754.27,0.00047671,21]
[327523431,1716154133806,-500.0,0.00047945,20]
[327523432,1716154133832,-537.25,0.00047945,45]
[327523433,1716154133858,-500.0,0.00047945,45]
[327523434,1716154133883,-500.0,0.00047945,45]
[327523435,1716154133909,-500.0,0.00047945,45]
[327523436,1716154133935,-500.0,0.00047945,45]
[327523437,1716154133962,-500.0,0.00047945,45]
[327523438,1716154133987,-500.0,0.00047945,45]
[327523439,1716154134014,-500.0,0.00047945,45]
[327523440,1716154134039,-925.94,0.00047945,45]
[327523441,1716154134063,-1631.99,0.00047945,45]
[327523442,1716154134088,-500.0,0.00047945,45]
[327523443,1716154134114,-5763.66,0.00047945,45]
[327523444,1716154134140,-501.97,0.00047945,45]
[327523445,1716154134167,-2028.34,0.00047945,45]
[327523446,1716154134194,-10396.27,0.00047945,45]
[327523447,1716154134220,-904.37,0.00047945,45]
[327523448,1716154134247,-739.09,0.00047945,45]
[327523449,1716154134272,-524.68,0.00047945,45]
[327523450,1716154134298,-312.25623148,0.00047945,45]
[327523451,1716154134324,-954.34,0.00047945,45]
[327523452,1716154134349,-1612.29,0.00047945,45]
[327523453,1716154134375,-689.88,0.00047945,45]
[327523454,1716154134400,-500.0,0.00047945,45]
[327523455,1716154134427,-890.96,0.00047945,45]
[327523456,1716154134454,-500.0,0.00047945,45]
[327523457,1716154134481,-1024.74,0.00047945,45]
[327523458,1716154134507,-500.0,0.00047945,45]
[327523459,1716154134535,-7230.68,0.00047945,45]
[327523460,1716154134561,-500.0,0.00047945,45]
[327523461,1716154134586,-500.0,0.00047945,45]
[327523462,1716154134611,-500.0,0.00047945,45]
[327523463,1716154134635,-240.36,0.00047945,45]
[327523464,1716154134663,-2105.86,0.00047945,45]
[327523465,1716154134692,-754.27,0.00047945,21]
[327523466,1716154134717,-500.0,0.00048219,20]
[327523467,1716154134743,-537.25,0.00048219,46]
[327523468,1716154134840,-500.0,0.00048219,46]
[327523469,1716154134866,-500.0,0.00048219,46]
[327523470,1716154134892,-500.0,0.00048219,46]
[327523471,1716154134919,-500.0,0.00048219,46]
[327523472,1716154134946,-500.0,0.00048219,46]
[327523473,1716154134971,-500.0,0.00048219,46]
[327523474,1716154134997,-500.0,0.00048219,46]
[327523475,1716154135022,-925.94,0.00048219,46]
[327523476,1716154135047,-1631.99,0.00048219,46]
[327523477,1716154135074,-593.07,0.00048219,46]
[327523478,1716154135101,-5763.66,0.00048219,46]
[327523479,1716154135127,-501.97,0.00048219,46]
[327523480,1716154135155,-2028.34,0.00048219,46]
[327523481,1716154135182,-10396.27,0.00048219,46]
[327523482,1716154135207,-904.37,0.00048219,46]
[327523483,1716154135233,-739.09,0.00048219,46]
[327523484,1716154135258,-524.68,0.00048219,46]
[327523485,1716154135284,-954.34,0.00048219,46]
[327523486,1716154135310,-1612.29,0.00048219,46]
[327523487,1716154135335,-689.88,0.00048219,46]
[327523488,1716154135361,-500.0,0.00048219,46]
[327523489,1716154135388,-890.96,0.00048219,46]
[327523490,1716154135414,-500.0,0.00048219,46]
[327523491,1716154135441,-1024.74,0.00048219,46]
[327523492,1716154135467,-500.0,0.00048219,46]
[327523493,1716154135492,-7230.68,0.00048219,46]
[327523494,1716154135520,-500.0,0.00048219,46]
[327523495,1716154135546,-500.0,0.00048219,46]
[327523496,1716154135572,-500.0,0.00048219,46]
[327523497,1716154135599,-2105.86,0.00048219,46]
[327523498,1716154135625,-754.27,0.00048219,21]
[327523499,1716154135650,-151.0,0.00048274,120]
[327523500,1716154135679,-507.0,0.00048398,30]
[327523501,1716154135708,-500.0,0.00048493,20]
[327523502,1716154135735,-537.25,0.00048493,47]
[327523503,1716154135761,-500.0,0.00048493,47]
[327523504,1716154135789,-500.0,0.00048493,47]
[327523505,1716154135813,-560.17805098,0.00048493,47]
[327523506,1716154135840,-500.0,0.00048493,47]
[327523507,1716154135867,-500.0,0.00048493,47]
[327523508,1716154135894,-231.14770734,0.00048493,47]
[327523509,1716154135921,-500.0,0.00048493,47]
[327523510,1716154135946,-925.94,0.00048493,47]
[327523511,1716154135970,-1631.99,0.00048493,47]
[327523512,1716154135995,-5763.66,0.00048493,47]
[327523513,1716154136020,-501.97,0.00048493,47]
[327523514,1716154136048,-2028.34,0.00048493,47]
[327523515,1716154136074,-10396.27,0.00048493,47]
[327523516,1716154136100,-904.37,0.00048493,47]
[327523517,1716154136126,-739.09,0.00048493,47]
[327523518,1716154136215,-524.68,0.00048493,47]
[327523519,1716154136243,-954.34,0.00048493,47]
[327523520,1716154136270,-1612.29,0.00048493,47]
[327523521,1716154136297,-689.88,0.00048493,47]
[327523522,1716154136322,-500.0,0.00048493,47]
[327523523,1716154136348,-890.96,0.00048493,47]
[327523524,1716154136375,-284.2,0.00048493,47]
[327523525,1716154136403,-1024.74,0.00048493,47]
[327523526,1716154136429,-500.0,0.00048493,47]
[327523527,1716154136456,-7230.68,0.00048493,47]
[327523528,1716154136483,-500.0,0.00048493,47]
[327523529,1716154136508,-500.0,0.00048493,47]
[327523530,1716154136533,-500.0,0.00048493,47]
[327523531,1716154136559,-2105.86,0.00048493,47]
[327523532,1716154136585,-754.27,0.00048493,21]
[327523533,1716154136610,-10000.0,0.00048666,120]
[327523534,1716154136635,-150.5,0.0004867,35]
[327523535,1716154136659,-150.5,0.0004868,35]
[327523536,1716154136687,-150.5,0.0004869,35]
[327523537,1716154136711,-596.30565277,0.00048767,20]
[327523538,1716154136737,-537.25,0.00048767,48]
[327523539,1716154136764,-500.0,0.00048767,48]
[327523540,1716154136789,-500.0,0.00048767,48]
[327523541,1716154136815,-235.21787443,0.00048767,48]
[327523542,1716154136840,-500.0,0.00048767,48]
[327523543,1716154136865,-456.17,0.00048767,48]
[327523544,1716154136889,-925.94,0.00048767,48]
[327523545,1716154136913,-1631.99,0.00048767,48]
[327523546,1716154136939,-5763.66,0.00048767,48]
[327523547,1716154136966,-501.97,0.00048767,48]
[327523548,1716154136993,-2028.34,0.00048767,48]
[327523549,1716154137019,-10396.27,0.00048767,48]
[327523550,1716154137044,-904.37,0.00048767,48]
[327523551,1716154137071,-739.09,0.00048767,48]
[327523552,1716154137095,-524.68,0.00048767,48]
[327523553,1716154137122,-954.34,0.00048767,48]
[327523554,1716154137147,-1612.29,0.00048767,48]
[327523555,1716154137175,-689.88,0.00048767,48]
[327523556,1716154137201,-500.0,0.00048767,48]
[327523557,1716154137226,-890.96,0.00048767,48]
[327523558,1716154137252,-1024.74,0.00048767,48]
[327523559,1716154137278,-620.72876867,0.00048767,48]
[327523560,1716154137307,-7230.68,0.00048767,48]
[327523561,1716154137333,-500.0,0.00048767,48]
[327523562,1716154137360,-500.0,0.00048767,48]
[327523563,1716154137385,-500.0,0.00048767,48]
[327523564,1716154137414,-2105.86,0.00048767,48]
[327523565,1716154137440,-754.27,0.00048767,21]
[327523566,1716154137465,-2596.41928665,0.000488,90]
[327523567,1716154137552,-263746.43585645,0.000488,120]
[327523568,1716154137577,-344.65884307,0.00049,120]
[327523569,1716154137601,-3367.60258905,0.00049,60]
[327523570,1716154137626,-1000.0,0.00049,49]
[327523571,1716154137651,-537.25,0.00049041,49]
[327523572,1716154137677,-500.0,0.00049041,49]
[327523573,1716154137707,-500.0,0.00049041,49]
[327523574,1716154137732,-331.95,0.00049041,49]
[327523575,1716154137756,-925.94,0.00049041,49]
[327523576,1716154137783,-1631.99,0.00049041,49]
[327523577,1716154137808,-5763.66,0.00049041,49]
[327523578,1716154137832,-501.97,0.00049041,49]
[327523579,1716154137859,-2028.34,0.00049041,49]
[327523580,1716154137883,-10396.27,0.00049041,49]
[327523581,1716154137908,-904.37,0.00049041,49]
[327523582,1716154137934,-739.09,0.00049041,49]
[327523583,1716154137958,-524.68,0.00049041,49]
[327523584,1716154137984,-954.34,0.00049041,49]
[327523585,1716154138009,-1612.29,0.00049041,49]
[327523586,1716154138036,-689.88,0.00049041,49]
[327523587,1716154138061,-500.0,0.00049041,49]
[327523588,1716154138087,-890.96,0.00049041,49]
[327523589,1716154138113,-1024.74,0.00049041,49]
[327523590,1716154138141,-7230.68,0.00049041,49]
[327523591,1716154138168,-500.0,0.00049041,49]
[327523592,1716154138193,-500.0,0.00049041,49]
[327523593,1716154138219,-500.0,0.00049041,49]
[327523594,1716154138246,-2105.86,0.00049041,49]
[327523595,1716154138270,-500.0,0.00049315,31]
[327523596,1716154138295,-500.0,0.00049315,31]
[327523597,1716154138319,-500.0,0.00049315,31]
[327523598,1716154138343,-500.0,0.00049315,31]
[327523599,1716154138368,-463.60165042,0.00049315,31]
[327523600,1716154138394,-500.0,0.00049315,31]
[327523601,1716154138418,-500.0,0.00049315,31]
[327523602,1716154138442,-200.22112241,0.00049315,31]
[327523603,1716154138468,-537.25,0.00049315,120]
[327523604,1716154138494,-474.28,0.00049315,120]
[327523605,1716154138519,-500.0,0.00049315,120]
[327523606,1716154138544,-925.94,0.00049315,120]
[327523607,1716154138570,-1631.99,0.00049315,120]
[327523608,1716154138596,-5763.66,0.00049315,120]
[327523609,1716154138623,-501.97,0.00049315,120]
[327523610,1716154138652,-2028.34,0.00049315,120]
[327523611,1716154138682,-10396.27,0.00049315,120]
[327523612,1716154138712,-904.37,0.00049315,120]
[327523613,1716154138801,-739.09,0.00049315,120]
[327523614,1716154138831,-524.68,0.00049315,120]
[327523615,1716154138861,-954.34,0.00049315,120]
[327523616,1716154138887,-1612.29,0.00049315,120]
[327523617,1716154138914,-689.88,0.00049315,120]
[327523618,1716154138939,-500.0,0.00049315,120]
[327523619,1716154138966,-890.96,0.00049315,120]
[327523620,1716154138993,-1024.74,0.00049315,120]
[327523621,1716154139021,-7230.68,0.00049315,120]
[327523622,1716154139047,-500.0,0.00049315,120]
[327523623,1716154139072,-500.0,0.00049315,120]
[327523624,1716154139096,-500.0,0.00049315,120]
[327523625,1716154139120,-500.0,0.00049315,120]
[327523626,1716154139145,-500.0,0.00049315,120]
[327523627,1716154139171,-500.0,0.00049315,120]
[327523628,1716154139196,-500.0,0.00049315,120]
[327523629,1716154139220,-500.0,0.00049315,120]
[327523630,1716154139245,-500.0,0.00049315,120]
[327523631,1716154139269,-500.0,0.00049315,120]
[327523632,1716154139292,-500.0,0.00049315,120]
[327523633,1716154139316,-500.0,0.00049315,120]
[327523634,1716154139340,-500.0,0.00049315,120]
[327523635,1716154139365,-500.0,0.00049315,120]
[327523636,1716154139389,-500.0,0.00049315,120]
[327523637,1716154139413,-500.0,0.00049315,120]
[327523638,1716154139437,-500.0,0.00049315,120]
[327523639,1716154139461,-500.0,0.00049315,120]
[327523640,1716154139485,-500.0,0.00049315,120]
[327523641,1716154139509,-500.0,0.00049315,120]
[327523642,1716154139534,-500.0,0.00049315,120]
[327523643,1716154139558,-540.10549374,0.00049315,120]
[327523644,1716154139583,-271.0624598,0.00049315,120]
[327523645,1716154139608,-500.0,0.00049315,120]
[327523646,1716154139635,-2105.86,0.00049315,120]
[327523647,1716154139659,-212.316877,0.00049315,120]
[327523648,1716154139688,-151.0,0.0004937,120]
[327523649,1716154139714,-200.0,0.00049373,120]
[327523650,1716154139741,-6013.30840242,0.00049379,120]
[327523651,1716154139768,-537.25,0.00049589,120]
[327523652,1716154139794,-500.0,0.00049589,120]
[327523653,1716154139819,-925.94,0.00049589,120]
[327523654,1716154139848,-1631.99,0.00049589,120]
[327523655,1716154139876,-5763.66,0.00049589,120]
[327523656,1716154139902,-501.97,0.00049589,120]
[327523657,1716154139930,-2028.34,0.00049589,120]
[327523658,1716154139956,-10396.27,0.00049589,120]
[327523659,1716154140045,-904.37,0.00049589,120]
[327523660,1716154140072,-739.09,0.00049589,120]
[327523661,1716154140099,-524.68,0.00049589,120]
[327523662,1716154140125,-954.34,0.00049589,120]
[327523663,1716154140150,-1612.29,0.00049589,120]
[327523664,1716154140178,-689.88,0.00049589,120]
[327523665,1716154140206,-500.0,0.00049589,120]
[327523666,1716154140233,-890.96,0.00049589,120]
[327523667,1716154140260,-1024.74,0.00049589,120]
[327523668,1716154140289,-7230.68,0.00049589,120]
[327523669,1716154140315,-500.0,0.00049589,120]
[327523670,1716154140342,-500.0,0.00049589,120]
[327523671,1716154140369,-2105.86,0.00049589,120]
[327523672,1716154140393,-1000.0,0.00049666,120]
[327523673,1716154140420,-182.0,0.00049833,35]
[327523674,1716154140445,-182.0,0.00049843,35]
[327523675,1716154140471,-182.0,0.00049853,35]
[327523676,1716154140495,-537.25,0.00049863,120]
[327523677,1716154140521,-500.0,0.00049863,120]
[327523678,1716154140546,-925.94,0.00049863,120]
[327523679,1716154140571,-1631.99,0.00049863,120]
[327523680,1716154140596,-5763.66,0.00049863,120]
[327523681,1716154140622,-501.97,0.00049863,120]
[327523682,1716154140650,-2028.34,0.00049863,120]
[327523683,1716154140678,-10396.27,0.00049863,120]
[327523684,1716154140707,-904.37,0.00049863,120]
[327523685,1716154140735,-739.09,0.00049863,120]
[327523686,1716154140762,-524.68,0.00049863,120]
[327523687,1716154140789,-954.34,0.00049863,120]
[327523688,1716154140814,-1612.29,0.00049863,120]
[327523689,1716154140839,-689.88,0.00049863,120]
[327523690,1716154140865,-500.0,0.00049863,120]
[327523691,1716154140891,-890.96,0.00049863,120]
[327523692,1716154140919,-1024.74,0.00049863,120]
[327523693,1716154140945,-7230.68,0.00049863,120]
[327523694,1716154140971,-243.31,0.00049863,120]
[327523695,1716154140996,-405.27634357,0.00049863,120]
[327523696,1716154141023,-2105.86,0.00049863,120]
[327523697,1716154141047,-256.14,0.0004997,35]
[327523698,1716154141071,-150.5,0.0004997,35]
[327523699,1716154141095,-376.0,0.0004997,35]
[327523700,1716154141119,-406.0,0.0004997,35]
[327523701,1716154141143,-300.0,0.0004997,35]
[327523702,1716154141168,-237.0,0.0004997,35]
[327523703,1716154141257,-150.5,0.0004998,35]
[327523704,1716154141283,-150.5,0.0004998,35]
[327523705,1716154141309,-278.35,0.0004998,35]
[327523706,1716154141335,-376.0,0.0004998,35]
[327523707,1716154141361,-406.0,0.0004998,35]
[327523708,1716154141386,-300.0,0.0004998,35]
[327523709,1716154141411,-237.0,0.0004998,35]
[327523710,1716154141437,-150.5,0.0004999,35]
[327523711,1716154141461,-150.5,0.0004999,35]
[327523712,1716154141486,-150.5,0.0004999,35]
[327523713,1716154141510,-376.0,0.0004999,35]
[327523714,1716154141535,-406.0,0.0004999,35]
[327523715,1716154141564,-300.0,0.0004999,35]
[327523716,1716154141588,-237.0,0.0004999,35]
[327523717,1716154141616,-2000.0,0.0005,50]
[327523718,1716154141639,-273.09448129,0.0005,30]
[327523719,1716154141664,-151.0,0.0005,120]
[327523720,1716154141691,-200.51106064,0.0005,120]
[327523721,1716154141716,-194.32682163,0.0005,120]
[327523722,1716154141739,-59440.97963783,0.0005,120]
[327523723,1716154141764,-592.3859748,0.0005,120]
[327523724,1716154141789,-1000.0,0.0005,120]
[327523725,1716154141813,-300000.0,0.0005,30]
[327523726,1716154141840,-447.85627478,0.0005,120]
[327523727,1716154141864,-30000.0,0.0005,30]
[327523728,1716154141891,-537.37229147,0.00050136,120]
[327523729,1716154141916,-291.4401338,0.00050136,120]
[327523730,1716154141942,-926.03982017,0.00050136,120]
[327523731,1716154141966,-1632.19584816,0.00050136,120]
[327523732,1716154141992,-5763.74717368,0.00050136,120]
[327523733,1716154142017,-502.04,0.00050136,120]
[327523734,1716154142045,-2028.44285847,0.00050136,120]
[327523735,1716154142074,-10396.3005076,0.00050136,120]
[327523736,1716154142099,-904.5,0.00050136,120]
[327523737,1716154142127,-739.21616121,0.00050136,120]
[327523738,1716154142152,-524.76,0.00050136,120]
[327523739,1716154142179,-954.37256805,0.00050136,120]
[327523740,1716154142204,-1612.48785964,0.00050136,120]
[327523741,1716154142230,-689.89805459,0.00050136,120]
[327523742,1716154142255,-203.9451446,0.00050136,120]
[327523743,1716154142279,-891.08046228,0.00050136,120]
[327523744,1716154142304,-1024.88082011,0.00050136,120]
[327523745,1716154142391,-7230.68801447,0.00050136,120]
[327523746,1716154142418,-2105.99316135,0.00050136,120]
[327523747,1716154142443,-433.0,0.00050262,120]
[327523748,1716154142468,-300.0,0.000503,15]
[327523749,1716154142492,-1000.0,0.000503,15]
[327523750,1716154142517,-151.0,0.00050466,120]
[327523751,1716154142541,-10000.0,0.0005066,120]
[327523752,1716154142565,-507.0,0.00050818,30]
[327523753,1716154142590,-1000.0,0.00051,51]
[327523754,1716154142616,-3000.0,0.00051,85]
[327523755,1716154142642,-3000.0,0.0005101,85]
[327523756,1716154142668,-3000.0,0.0005102,85]
[327523757,1716154142698,-3000.0,0.0005103,85]
[327523758,1716154142726,-3000.0,0.0005104,85]
[327523759,1716154142750,-3000.0,0.0005105,85]
[327523760,1716154142778,-3000.0,0.0005106,85]
[327523761,1716154142803,-4723.970688,0.0005107,85]
[327523762,1716154142828,-151.0,0.00051562,120]
[327523763,1716154142854,-10000.0,0.0005166,120]
[327523764,1716154142992,754.27,0.00049041,21]
[327523765,1716154143022,500.0,0.00044657,33]
[327523766,1716154143051,754.27,0.00049315,21]
[327523767,1716154143081,500.0,0.00044931,34]
[327523768,1716154143112,500.0,0.00045205,35]
[327523769,1716154143142,754.27,0.00049589,21]
[327523770,1716154143173,500.0,0.00045479,36]
[327523771,1716154143203,754.27,0.00049863,21]
[327523772,1716154143232,500.0,0.00045753,37]
[327523773,1716154143264,754.43493171,0.00050136,21]
[327523774,1716154143300,500.0,0.00046027,38]
[327523775,1716154143393,500.0,0.00046301,39]
[327523776,1716154143424,500.0,0.00046575,40]
[327523777,1716154143454,500.0,0.00046849,41]
[327523778,1716154143484,248.09243055,0.00047123,42]
[327523779,1716154143672,464.00462424,0.0003,30]
[327523780,1716154146192,300.02456916,0.00049315,31]
[327523781,1716154146310,248.90916477,0.000429,28]
[327523782,1716154151456,500.0,0.00043834,31]
[327523783,1716154151508,500.0,0.00043834,31]
[327523784,1716154151542,500.0,0.00043834,31]
[327523785,1716154151608,345.40079375,0.00043834,31]
[327523786,1716154151947,500.0,0.00043834,31]
[327523787,1716154164094,464.00462424,0.0003,30]
[327523789,1716154168601,154.86062544,0.0005,30]
[327523792,1716154186037,464.00462424,0.0003,30]
[327523793,1716154190549,156.12532701,0.0005,30]
[327523797,1716154208030,464.00462424,0.0003,30]
[327523799,1716154228048,534.9210977,0.0003,30]
[327523832,1716154231660,500.0,0.00043734,31]
[327523839,1716154231714,203.62023812,0.00043734,31]
[327523841,1716154231728,-1270.0,0.00020911,2]
[327523843,1716154231737,-372.51310673,0.00020912,2]
[327523845,1716154231748,-811.32635869,0.00020913,2]
[327523896,1716154237833,-871.102,0.00020913,2]
[327523909,1716154240226,-391.9602978,0.00020913,2]
[327523910,1716154240244,-166.666666,0.00021918,2]
[327523911,1716154240263,-150.0,0.0002196,3]
[327523912,1716154240279,-166.666666,0.00022431,2]
[327523913,1716154240294,-166.666666,0.00022944,2]
[327523914,1716154240313,-166.666666,0.00023456,2]
[327523915,1716154240332,-166.666666,0.00023969,2]
[327523916,1716154240346,-150.0,0.00024335,5]
[327523917,1716154240357,-187.500027,0.00024384,2]
[327523918,1716154240367,-164.138579,0.00024384,2]
[327523919,1716154240377,-166.666666,0.00024482,2]
[327523920,1716154240386,-204.76903971,0.0002651,2]
[327523921,1716154240396,-4324.56971438,0.0002651,2]
[327523922,1716154240406,-150.0,0.00026711,5]
[327523923,1716154240420,-150.0,0.00029086,7]
[327523924,1716154240442,-150.0,0.00031461,7]
[327523925,1716154240468,-150.0,0.00033182,2]
[327523926,1716154240495,-467.90063964,0.00034,4]
[327523927,1716154240531,-500.0,0.0003479,7]
[327523928,1716154240573,-500.0,0.0003479,7]
[327523929,1716154240592,-589.0,0.0003479,7]
[327523930,1716154240601,-273.12273835,0.00035,4]
[327523931,1716154240611,-680.23950887,0.00035,4]
[327523932,1716154240620,-164.138579,0.00035644,2]
[327523933,1716154240630,-1707.57436297,0.00037,2]
[327523934,1716154240639,-1900.45725486,0.0004,4]
[327523935,1716154240649,-2358.11671838,0.00041918,2]
[327523936,1716154240659,-150.0,0.00042917,2]
[327523937,1716154240669,-416.98047207,0.00042918,2]
[327523938,1716154240679,-4221.46001999,0.00042969,2]
[327523939,1716154240690,-1437.54709545,0.00042996,2]
[327523940,1716154240932,150.0,0.00036212,15]
[327523956,1716154344755,162.0,0.00043,90]
[327523957,1716154345140,162.0,0.00043014,90]
[327523958,1716154345489,162.0,0.00044877,90]
[327523959,1716154347007,162.0,0.00050262,120]
[327523960,1716154347350,165.0,0.00047121,90]
[327523961,1716154351616,217.79551913,0.00045841,28]
[327523962,1716154360435,301.55153063,0.00042999,31]
[327523963,1716154397861,3000.0,0.00051,85]
[327523964,1716154398456,3000.0,0.0005101,85]
[327523965,1716154399331,3000.0,0.0005102,85]
[327523966,1716154400296,3000.0,0.0005103,85]
[327523967,1716154401484,3000.0,0.0005104,85]
[327523968,1716154402239,3000.0,0.0005105,85]
[327523969,1716154403044,3000.0,0.0005106,85]
[327523970,1716154430092,500.0,0.00043835,30]
[327523971,1716154443130,500.0,0.00043835,30]
[327523972,1716154443399,510.49,0.00044109,31]
[327523973,1716154455494,444.98806814,0.0005106,15]
[327523974,1716154471487,370.82339012,0.0005106,15]
[327523977,1716154489492,370.82339012,0.0005106,15]
[327523978,1716154507515,296.6587121,0.0005106,15]
[327523979,1716154514903,500.0,0.00043835,30]
[327523980,1716154515535,245.07006603,0.00043835,30]
[327523982,1716154523483,296.6587121,0.0005106,15]
[327523983,1716154539195,10419.80148506,0.0005,60]
[327523984,1716154541481,296.6587121,0.0005106,15]
[327523989,1716154557257,190.57107924,0.00042222,28]
[327523990,1716154561492,296.6587121,0.0005106,15]
[327523991,1716154581504,296.6587121,0.0005106,15]
[327523992,1716154585950,500.0,0.00043835,30]
[327523993,1716154586211,500.0,0.00044109,31]
[327523994,1716154586579,500.0,0.00044383,32]
[327523995,1716154586895,465.46929758,0.00044657,33]
[327523996,1716154599496,444.58647918,0.0005106,15]
[327523997,1716154609575,322.62773313,0.00043835,30]
[327523998,1716154634088,211.93063376,0.000473,120]
[327523999,1716154652228,3778.11693516,0.00048398,61]
[327524002,1716154683563,154.84515485,0.00043835,30]
[327524005,1716154767520,166.74969434,0.0004221,28]
[327524006,1716154772264,1889.05846758,0.00048398,61]
[327524007,1716154841609,500.0,0.00043835,30]
[327524008,1716154841806,500.0,0.00044109,31]
[327524009,1716154843740,501.19201746,0.00043835,30]
[327524010,1716154888104,500.0,0.00050975,20]
[327524011,1716154891998,944.52923379,0.00048398,61]
[327524032,1716154944689,162.0,0.00047,90]
[327524033,1716154945063,162.0,0.00048904,90]
[327524034,1716154975963,500.0,0.00043835,30]
[327524037,1716154987799,166.74969434,0.00045609,28]
[327524038,1716154993673,150.0,0.00051,85]
[327524039,1716155012386,472.26461689,0.00048398,61]
[327524042,1716155132067,236.13230845,0.00048398,61]
[327524043,1716155142058,500.0,0.00043835,30]
[327524045,1716155159888,999.0,0.00049767,120]
[327524046,1716155160195,875.19,0.00051137,120]
[327524047,1716155193219,166.74969434,0.00049563,28]
[327524049,1716155252427,236.13230844,0.00048398,61]
[327524111,1716155432156,-170.68488,0.00020298,2]
[327524113,1716155432167,-166.74969436,0.00020798,2]
[327524115,1716155432176,-648.07292564,0.00020895,2]
[327524117,1716155432190,-34966.20934682,0.00020895,2]